fUSD/lending_fUSD_20251228
["ID","MTS","AMOUNT","RATE_DAILY","PERIOD"]
[399963843,1766947848036,-15620.19646476,0.000169,2]
[399963844,1766947848047,-163.34254336,0.000169,2]
[399963845,1766947848055,-1000.0,0.000169,2]
[399963846,1766947848064,-352.50332532,0.000169,2]
[399963847,1766947848075,-526.62278413,0.000169,2]
[399963848,1766947848086,-322.03359741,0.000169,2]
[399963849,1766947848095,-405.16201081,0.000169,2]
[399963850,1766947848105,-3745.0,0.000169,2]
[399963851,1766947848114,-150.0,0.00016907,2]
[399963852,1766947848124,-150.0,0.00016907,2]
[399963853,1766947848134,-150.0,0.00016909,2]
[399963854,1766947848144,-150.0,0.00016914,2]
[399963855,1766947848154,-150.0,0.00016914,2]
[399963856,1766947848164,-925.0,0.00016923,2]
[399963857,1766947848175,-150.0,0.00016928,2]
[399963858,1766947848185,-150.0,0.0001693,2]
[399963859,1766947848195,-150.0,0.00016933,2]
[399963860,1766947848204,-150.0,0.00016938,2]
[399963861,1766947848214,-150.0,0.00016942,2]
[399963862,1766947848224,-150.0,0.00016947,2]
[399963863,1766947848234,-150.0,0.00016948,2]
[399963864,1766947848246,-150.0,0.0001695,2]
[399963865,1766947848255,-150.0,0.0001696,2]
[399963866,1766947848265,-150.0,0.00016962,2]
[399963867,1766947848276,-150.0,0.00016967,2]
[399963868,1766947848285,-150.0,0.00016973,2]
[399963869,1766947848294,-150.0,0.00016973,2]
[399963870,1766947848303,-261.52919059,0.00016986,2]
[399963871,1766947848313,-291.19227716,0.00016986,2]
[399963872,1766947848322,-193.20504799,0.00016986,2]
[399963873,1766947848331,-257.38593742,0.00016986,2]
[399963874,1766947848340,-288.29142727,0.00016986,2]
[399963875,1766947848349,-298.68946488,0.00016986,2]
[399963876,1766947848359,-159.10391865,0.00016986,2]
[399963877,1766947848369,-191.18737209,0.00016986,2]
[399963878,1766947848381,-204.47837642,0.00016986,2]
[399963879,1766947848391,-157.03567619,0.00016986,2]
[399963880,1766947848404,-156.10987043,0.00016986,2]
[399963881,1766947848417,-172.24524013,0.00016986,2]
[399963882,1766947848430,-273.23141721,0.00016986,2]
[399963883,1766947848442,-266.31997745,0.00016986,2]
[399963884,1766947848454,-2085.1080015,0.00016998,2]
[399963885,1766947848466,-21398.3521636,0.00016998,2]
[399963886,1766947848479,-1104.26040629,0.00016999,5]
[399963887,1766947848491,-1104.26040629,0.00016999,5]
[399963888,1766947848501,-1104.26040629,0.00016999,5]
[399963889,1766947848512,-300.0,0.00016999,2]
[399963890,1766947848522,-300.0,0.00016999,2]
[399963891,1766947848534,-300.0,0.00016999,2]
[399963892,1766947848545,-666.0,0.00016999,2]
[399963893,1766947848556,-300.0,0.00016999,2]
[399963894,1766947848567,-2478759.02432161,0.00017,2]
[399963895,1766947848918,-971.81328667,0.00017,2]
[399963896,1766947848930,-23813.68123966,0.00017,2]
[399963897,1766947848972,-289.25086286,0.00015679,2]
[399963898,1766947848984,-210.74913714,0.00017,2]
[399963902,1766948140940,301.0575787,0.00030136,120]
[399963903,1766948359836,500.0,0.00030136,120]
[399963904,1766948360058,194.84476554,0.00030136,120]
[399963909,1766948581303,-1000.0,0.00013519,2]
[399963910,1766948581326,-300.0,0.00013608,2]
[399963911,1766948581348,-522.94551231,0.00013698,2]
[399963912,1766948581368,-500.0,0.00013698,2]
[399963913,1766948581394,-600.0,0.00014202,2]
[399963914,1766948581416,-441.16978428,0.00014202,2]
[399963915,1766948601517,-500.0,0.00014564,2]
[399963916,1766948601541,-151.0,0.00014564,2]
[399963917,1766948601566,-151.0,0.00014564,2]
[399963918,1766948601588,-208.44399176,0.00014564,2]
[399963919,1766948601611,-151.0,0.00014564,2]
[399963920,1766948601631,-151.0,0.00014564,2]
[399963921,1766948601653,-151.0,0.00014564,2]
[399963922,1766948601693,-151.0,0.00014564,2]
[399963923,1766948601740,-200.0,0.00014564,2]
[399963924,1766948601807,-200.0,0.00014564,2]
[399963925,1766948601880,-201.44071165,0.00014572,2]
[399963926,1766948675922,500.0,0.00030136,120]
[399963927,1766948676155,500.0,0.00030136,120]
[399963928,1766948676441,289.9253538,0.00030136,120]
[399963929,1766948741379,500.0,0.00030136,120]
[399963930,1766948741614,537.08080823,0.00030136,120]
[399963931,1766949032573,-160.0,0.000145,2]
[399963932,1766949032584,-200.0,0.00014564,2]
[399963933,1766949032595,-6.13195705,0.00014564,2]
[399963935,1766949032608,-493.86804295,0.00014564,2]
[399963937,1766949032619,-200.0,0.00014564,2]
[399963939,1766949032630,-6.49346049,0.00014572,2]
[399963942,1766949032645,-143.50653951,0.00014572,2]
[399963945,1766949032656,-658.44474807,0.00014572,2]
[399963947,1766949032668,-541.55525193,0.00014572,2]
[399963949,1766949032678,-233.0,0.00014572,2]
[399963951,1766949032687,-500.47659304,0.00014573,2]
[399963953,1766949032698,-163.28203139,0.00014573,2]
[399963955,1766949032707,-161.66199049,0.00014573,2]
[399963957,1766949032718,-500.0,0.00014573,2]
[399963959,1766949032728,-500.2750854,0.00014573,2]
[399963961,1766949032738,-172.95424446,0.00014573,2]
[399963963,1766949032749,-176.8587779,0.00014573,2]
[399963966,1766949032762,-500.0,0.00014573,2]
[399963968,1766949032773,-500.0,0.00014573,2]
[399963970,1766949032784,-500.0,0.00014573,2]
[399963972,1766949032795,-500.0,0.00014573,2]
[399963974,1766949032806,-500.0,0.00014573,2]
[399963976,1766949032816,-500.0,0.00014573,2]
[399963979,1766949032825,-550.76971944,0.00014573,2]
[399963980,1766949032835,-500.0,0.00014573,2]
[399963982,1766949032845,-562.7154793,0.00014573,2]
[399963984,1766949032855,-167.29981737,0.00014573,2]
[399963986,1766949032864,-500.0,0.00014573,2]
[399963987,1766949032876,-162.2863667,0.00014573,2]
[399963989,1766949032887,-599.62405907,0.00014573,2]
[399963990,1766949032898,-130.97220021,0.00014573,2]
[399963991,1766949032967,-369.02779979,0.00014573,2]
[399963992,1766949032977,-500.0,0.00014573,2]
[399963993,1766949032987,-454.08072381,0.00014573,2]
[399963994,1766949032998,-500.0,0.00014573,2]
[399963995,1766949033009,-500.0,0.00014573,2]
[399963996,1766949033019,-516.38422422,0.00014573,2]
[399963997,1766949033030,-500.0,0.00014573,2]
[399963998,1766949033040,-500.0,0.00014573,2]
[399963999,1766949033053,-392.97240089,0.00014573,2]
[399964000,1766949033063,-500.0,0.00014573,2]
[399964001,1766949033073,-220.18485129,0.00014573,2]
[399964002,1766949033207,-279.81514871,0.00014573,2]
[399964003,1766949033220,-500.0,0.00014573,2]
[399964004,1766949033231,-500.0,0.00014573,2]
[399964005,1766949033243,-500.0,0.00014573,2]
[399964006,1766949033253,-500.0,0.00014573,2]
[399964007,1766949033264,-500.0,0.00014573,2]
[399964008,1766949033276,-220.89057173,0.00014573,2]
[399964009,1766949033289,-279.10942827,0.00014573,2]
[399964010,1766949033300,-500.0,0.00014573,2]
[399964011,1766949033310,-85.57194736,0.00014573,2]
[399964012,1766949033323,-414.42805264,0.00014573,2]
[399964013,1766949033334,-500.0,0.00014573,2]
[399964014,1766949033345,-500.0,0.00014573,2]
[399964015,1766949033355,-926.48,0.00014573,2]
[399964016,1766949033366,-2347.02043277,0.00014688,2]
[399964017,1766949033379,-266.99999979,0.00014688,2]
[399964018,1766949033463,-885.84363645,0.00014688,2]
[399964019,1766949033475,-553.0612838,0.00014688,2]
[399964025,1766949038331,-984.20333733,0.00014688,2]
[399964027,1766949038387,-664.38666661,0.00014688,2]
[399964028,1766949038440,-813.8673398,0.00014688,2]
[399964040,1766949038797,-852.00000021,0.00014688,2]
[399964043,1766949038820,-105942.31730324,0.00014688,2]
[399964044,1766949038831,-375.08,0.00014704,2]
[399964046,1766949038840,-462.34987463,0.00014813,2]
[399964048,1766949038850,-500.0,0.00014813,2]
[399964050,1766949038859,-500.0,0.00014813,2]
[399964051,1766949038870,-500.0,0.00014813,2]
[399964052,1766949038881,-500.0,0.00014813,2]
[399964053,1766949038891,-500.0,0.00014813,2]
[399964054,1766949038903,-500.0,0.00014813,2]
[399964055,1766949038912,-500.0,0.00014813,2]
[399964056,1766949038922,-500.0,0.00014813,2]
[399964057,1766949038932,-264.51271008,0.00014813,2]
[399964058,1766949038941,-500.0,0.00014813,2]
[399964059,1766949038952,-500.0,0.00014813,2]
[399964060,1766949038962,-500.0,0.00014813,2]
[399964061,1766949038972,-500.0,0.00014813,2]
[399964062,1766949038981,-500.0,0.00014813,2]
[399964063,1766949038991,-500.0,0.00014813,2]
[399964064,1766949039002,-500.0,0.00014813,2]
[399964065,1766949039013,-500.0,0.00014813,2]
[399964066,1766949039024,-500.0,0.00014813,2]
[399964067,1766949039034,-500.0,0.00014813,2]
[399964068,1766949039043,-500.0,0.00014813,2]
[399964069,1766949039053,-500.0,0.00014813,2]
[399964070,1766949039063,-500.0,0.00014813,2]
[399964071,1766949039073,-500.0,0.00014813,2]
[399964072,1766949039082,-600.94620948,0.00014813,2]
[399964073,1766949039092,-500.0,0.00014813,2]
[399964074,1766949039102,-500.0,0.00014813,2]
[399964075,1766949039111,-500.0,0.00014813,2]
[399964076,1766949039121,-7411.84708448,0.00014814,2]
[399964077,1766949039131,-926.48,0.00014847,2]
[399964078,1766949039140,-500.0,0.00014932,2]
[399964079,1766949039153,-155.1487227,0.00015,2]
[399964080,1766949039162,-8650.38932794,0.00015019,2]
[399964081,1766949039172,-1000.0,0.00015121,2]
[399964082,1766949039181,-1000.0,0.00015121,2]
[399964083,1766949039191,-1000.0,0.00015121,2]
[399964084,1766949039200,-1000.0,0.00015121,2]
[399964085,1766949039211,-926.48,0.00015121,2]
[399964086,1766949039220,-1852.42,0.00015132,2]
[399964087,1766949039230,-7406.89,0.00015169,2]
[399964088,1766949039239,-625.12306564,0.00015198,2]
[399964089,1766949039249,-171.92,0.00015227,2]
[399964090,1766949039258,-8650.38932789,0.00015228,2]
[399964091,1766949039267,-154.04,0.0001527,2]
[399964092,1766949039277,-150.0,0.00015288,2]
[399964093,1766949039286,-150.0,0.00015288,2]
[399964094,1766949039296,-150.0,0.00015288,2]
[399964095,1766949039306,-150.0,0.00015288,2]
[399964096,1766949039315,-150.0,0.00015288,2]
[399964097,1766949039325,-150.0,0.00015288,2]
[399964098,1766949039335,-150.0,0.00015288,2]
[399964099,1766949039344,-150.0,0.00015288,2]
[399964100,1766949039354,-150.0,0.00015288,2]
[399964101,1766949039363,-150.0,0.00015288,2]
[399964102,1766949039374,-150.0,0.00015288,2]
[399964103,1766949039384,-150.0,0.00015288,2]
[399964104,1766949039394,-150.0,0.00015288,2]
[399964105,1766949039403,-150.0,0.00015288,2]
[399964106,1766949039413,-150.0,0.00015296,2]
[399964107,1766949039422,-150.0,0.00015321,2]
[399964108,1766949039431,-150.0,0.0001533,2]
[399964109,1766949039440,-150.0,0.00015335,2]
[399964110,1766949039450,-150.0,0.00015351,2]
[399964111,1766949039464,-150.0,0.00015354,2]
[399964112,1766949039474,-150.0,0.00015358,2]
[399964113,1766949039483,-150.0,0.00015369,2]
[399964114,1766949039492,-150.0,0.00015373,2]
[399964115,1766949039502,-150.0,0.00015382,2]
[399964116,1766949039512,-150.0,0.00015388,2]
[399964117,1766949039521,-150.0,0.00015388,2]
[399964118,1766949039531,-926.48,0.00015395,2]
[399964119,1766949039541,-150.0,0.00015413,2]
[399964120,1766949039550,-150.0,0.00015415,2]
[399964121,1766949039559,-150.0,0.00015421,2]
[399964122,1766949039569,-150.0,0.00015429,2]
[399964123,1766949039579,-150.0,0.00015429,2]
[399964124,1766949039589,-8650.38932789,0.00015437,2]
[399964125,1766949039598,-150.0,0.00015449,2]
[399964126,1766949039608,-150.0,0.00015454,2]
[399964127,1766949039618,-150.0,0.00015458,2]
[399964128,1766949039628,-150.0,0.00015476,2]
[399964129,1766949039638,-150.0,0.00015476,2]
[399964130,1766949039649,-150.0,0.00015476,2]
[399964131,1766949039658,-500.0,0.00015479,2]
[399964132,1766949039667,-150.0,0.00015488,2]
[399964133,1766949039677,-150.0,0.00015488,2]
[399964134,1766949039686,-1002.09708591,0.00015499,2]
[399964135,1766949039697,-150.0,0.000155,2]
[399964136,1766949039707,-150.0,0.000155,2]
[399964137,1766949039717,-150.0,0.00015521,2]
[399964138,1766949039727,-150.0,0.00015524,2]
[399964139,1766949039737,-150.0,0.0001553,2]
[399964140,1766949039747,-150.0,0.0001553,2]
[399964141,1766949039758,-150.0,0.00015539,2]
[399964142,1766949039767,-150.0,0.00015542,2]
[399964143,1766949039776,-150.0,0.00015554,2]
[399964144,1766949039786,-150.0,0.00015571,2]
[399964145,1766949039795,-150.0,0.00015571,2]
[399964146,1766949039806,-150.0,0.00015571,2]
[399964147,1766949039816,-150.0,0.00015585,2]
[399964148,1766949039827,-150.0,0.00015587,2]
[399964149,1766949039837,-150.0,0.00015587,2]
[399964150,1766949039847,-150.0,0.00015602,2]
[399964151,1766949039856,-150.0,0.00015611,2]
[399964152,1766949039866,-150.0,0.00015618,2]
[399964153,1766949039880,-150.0,0.00015621,2]
[399964154,1766949039889,-150.0,0.00015627,2]
[399964155,1766949039900,-150.0,0.00015627,2]
[399964156,1766949039911,-150.0,0.00015642,2]
[399964157,1766949039920,-8650.38932789,0.00015646,2]
[399964158,1766949039929,-150.0,0.00015654,2]
[399964159,1766949039938,-150.0,0.00015665,2]
[399964160,1766949039951,-150.0,0.00015665,2]
[399964161,1766949039960,-150.0,0.00015665,2]
[399964162,1766949039969,-926.48,0.00015668,2]
[399964163,1766949039979,-1500.0,0.00015668,2]
[399964164,1766949039990,-1265.29552727,0.00015668,2]
[399964165,1766949040001,-1500.0,0.00015668,2]
[399964166,1766949040011,-1500.0,0.00015668,2]
[399964167,1766949040020,-150.0,0.0001567,2]
[399964168,1766949040029,-150.0,0.00015687,2]
[399964169,1766949040038,-150.0,0.00015687,2]
[399964170,1766949040048,-150.0,0.00015692,2]
[399964171,1766949040057,-255.0,0.00015694,2]
[399964172,1766949040066,-150.0,0.00015712,2]
[399964173,1766949040075,-150.0,0.00015712,2]
[399964174,1766949040085,-150.0,0.00015712,2]
[399964175,1766949040095,-150.0,0.00015721,2]
[399964176,1766949040105,-150.0,0.00015728,2]
[399964177,1766949040116,-150.0,0.00015754,2]
[399964178,1766949040126,-150.0,0.00015755,2]
[399964179,1766949040135,-150.0,0.0001576,2]
[399964180,1766949040145,-150.0,0.00015773,2]
[399964181,1766949040155,-150.0,0.00015773,2]
[399964182,1766949040165,-150.0,0.00015783,2]
[399964183,1766949040174,-150.0,0.00015787,2]
[399964184,1766949040184,-150.0,0.00015787,2]
[399964185,1766949040193,-150.0,0.00015791,2]
[399964186,1766949040203,-150.0,0.00015797,2]
[399964187,1766949040212,-150.0,0.00015807,2]
[399964188,1766949040221,-150.0,0.00015821,2]
[399964189,1766949040231,-150.0,0.0001584,2]
[399964190,1766949040241,-200.0,0.00015852,2]
[399964191,1766949040250,-150.0,0.00015854,2]
[399964192,1766949040260,-150.0,0.00015854,2]
[399964193,1766949040270,-150.0,0.00015854,2]
[399964194,1766949040279,-150.0,0.00015854,2]
[399964195,1766949040288,-150.0,0.00015854,2]
[399964196,1766949040297,-150.0,0.00015854,2]
[399964197,1766949040307,-150.0,0.00015854,2]
[399964198,1766949040316,-8650.38932789,0.00015855,2]
[399964199,1766949040325,-150.0,0.00015882,2]
[399964201,1766949040335,-150.0,0.00015887,2]
[399964204,1766949040344,-150.0,0.00015887,2]
[399964207,1766949040353,-150.0,0.00015901,2]
[399964211,1766949040362,-150.0,0.00015917,2]
[399964214,1766949040372,-150.0,0.0001592,2]
[399964216,1766949040381,-150.0,0.00015925,2]
[399964218,1766949040391,-150.0,0.00015925,2]
[399964223,1766949040401,-150.0,0.00015935,2]
[399964224,1766949040410,-926.48,0.00015942,2]
[399964228,1766949040421,-150.0,0.00015948,2]
[399964230,1766949040432,-300.0,0.0001595,2]
[399964232,1766949040441,-250.0,0.0001595,2]
[399964233,1766949040451,-600.0,0.0001595,2]
[399964234,1766949040461,-250.0,0.0001595,2]
[399964235,1766949040470,-150.0,0.00015954,2]
[399964236,1766949040480,-150.0,0.00015967,2]
[399964237,1766949040490,-150.0,0.00015967,2]
[399964238,1766949040500,-500.0,0.00015973,2]
[399964239,1766949040510,-500.0,0.00015973,2]
[399964240,1766949040520,-150.0,0.0001598,2]
[399964241,1766949040529,-150.0,0.00015987,2]
[399964242,1766949040539,-150.0,0.00015987,2]
[399964243,1766949040548,-150.0,0.00015995,2]
[399964244,1766949040557,-150.0,0.00015995,2]
[399964245,1766949040566,-347.3,0.00016,2]
[399964246,1766949040576,-150.0,0.0001601,2]
[399964247,1766949040585,-150.0,0.00016016,2]
[399964248,1766949040594,-150.0,0.00016016,2]
[399964249,1766949040605,-150.0,0.0001602,2]
[399964250,1766949040614,-1433.0,0.00016029,2]
[399964251,1766949040624,-1668.0,0.0001603,2]
[399964252,1766949040634,-162.0,0.0001604,2]
[399964253,1766949040643,-150.0,0.00016043,2]
[399964254,1766949040654,-150.0,0.00016043,2]
[399964255,1766949040663,-150.0,0.00016043,2]
[399964256,1766949040673,-150.0,0.00016052,2]
[399964257,1766949040683,-150.0,0.00016054,2]
[399964258,1766949040694,-8650.38932789,0.00016064,2]
[399964259,1766949040704,-150.0,0.00016066,2]
[399964260,1766949040713,-150.0,0.00016087,2]
[399964261,1766949040722,-150.0,0.00016087,2]
[399964262,1766949040732,-150.0,0.0001609,2]
[399964263,1766949040742,-150.0,0.00016095,2]
[399964264,1766949040751,-150.0,0.00016097,2]
[399964265,1766949040760,-150.0,0.00016106,2]
[399964266,1766949040770,-150.0,0.0001612,2]
[399964267,1766949040780,-1668.0,0.00016129,2]
[399964268,1766949040789,-150.0,0.00016137,2]
[399964269,1766949040799,-150.0,0.00016137,2]
[399964270,1766949040808,-150.0,0.00016137,2]
[399964271,1766949040818,-150.0,0.00016137,2]
[399964272,1766949040828,-150.0,0.00016137,2]
[399964273,1766949040838,-500.0,0.0001614,2]
[399964275,1766949040847,-150.0,0.00016154,2]
[399964276,1766949040856,-1668.0,0.0001616,2]
[399964278,1766949040866,-150.0,0.00016168,2]
[399964280,1766949040876,-150.0,0.00016177,2]
[399964282,1766949040889,-150.0,0.00016179,2]
[399964284,1766949040901,-150.0,0.00016184,2]
[399964287,1766949040910,-150.0,0.00016187,2]
[399964288,1766949040921,-150.0,0.00016187,2]
[399964290,1766949040930,-150.0,0.00016208,2]
[399964292,1766949040939,-1668.0,0.0001621,2]
[399964294,1766949040948,-926.48,0.00016216,2]
[399964297,1766949040959,-500.0,0.00016216,2]
[399964299,1766949040969,-2000.0,0.00016216,2]
[399964300,1766949040978,-150.0,0.0001622,2]
[399964301,1766949040987,-150.0,0.00016222,2]
[399964302,1766949040996,-150.0,0.00016231,2]
[399964303,1766949041006,-150.0,0.00016231,2]
[399964304,1766949041016,-150.0,0.00016231,2]
[399964305,1766949041025,-150.0,0.00016254,2]
[399964306,1766949041035,-206.3,0.00016257,2]
[399964307,1766949041044,-150.0,0.00016258,2]
[399964308,1766949041054,-150.0,0.00016258,2]
[399964309,1766949041064,-150.0,0.00016264,2]
[399964310,1766949041073,-8650.38932789,0.00016273,2]
[399964311,1766949041083,-150.0,0.00016279,2]
[399964312,1766949041092,-150.0,0.00016279,2]
[399964313,1766949041102,-150.0,0.00016287,2]
[399964314,1766949041112,-150.0,0.00016287,2]
[399964315,1766949041122,-150.0,0.00016294,2]
[399964316,1766949041132,-150.0,0.00016307,2]
[399964317,1766949041141,-150.0,0.00016307,2]
[399964318,1766949041153,-150.0,0.0001632,2]
[399964319,1766949041162,-150.0,0.00016326,2]
[399964320,1766949041172,-150.0,0.00016339,2]
[399964321,1766949041181,-390.51226373,0.00016347,2]
[399964322,1766949041191,-150.0,0.00016349,2]
[399964323,1766949041201,-150.0,0.00016349,2]
[399964324,1766949041211,-150.0,0.00016353,2]
[399964325,1766949041220,-150.0,0.00016357,2]
[399964326,1766949041230,-154.04,0.0001636,2]
[399964327,1766949041239,-150.0,0.00016373,2]
[399964328,1766949041248,-1668.0,0.00016382,2]
[399964329,1766949041258,-150.0,0.00016387,2]
[399964330,1766949041266,-150.0,0.00016387,2]
[399964331,1766949041275,-150.0,0.00016392,2]
[399964332,1766949041286,-274.78804007,0.00016414,2]
[399964333,1766949041295,-171.9,0.00016414,2]
[399964334,1766949041304,-150.0,0.0001642,2]
[399964335,1766949041313,-150.0,0.0001642,2]
[399964336,1766949041323,-150.0,0.0001642,2]
[399964337,1766949041334,-150.0,0.0001642,2]
[399964338,1766949041344,-150.0,0.0001642,2]
[399964339,1766949041353,-150.0,0.0001642,2]
[399964340,1766949041362,-150.0,0.0001642,2]
[399964341,1766949041372,-390.51226367,0.00016426,2]
[399964342,1766949041382,-220.47,0.0001643,2]
[399964343,1766949041391,-150.0,0.00016434,2]
[399964344,1766949041402,-500.0,0.00016438,2]
[399964345,1766949041411,-500.0,0.00016438,2]
[399964346,1766949041421,-500.0,0.00016438,2]
[399964347,1766949041431,-500.0,0.00016438,2]
[399964348,1766949041440,-500.0,0.00016438,2]
[399964349,1766949041450,-500.0,0.00016438,2]
[399964350,1766949041459,-500.0,0.00016438,2]
[399964351,1766949041468,-500.0,0.00016438,2]
[399964352,1766949041478,-500.0,0.00016438,2]
[399964353,1766949041488,-500.0,0.00016438,2]
[399964354,1766949041498,-500.0,0.00016438,2]
[399964355,1766949041507,-500.0,0.00016438,2]
[399964356,1766949041516,-500.0,0.00016438,2]
[399964357,1766949041526,-500.0,0.00016438,2]
[399964358,1766949041536,-500.0,0.00016438,2]
[399964359,1766949041547,-500.0,0.00016438,2]
[399964360,1766949041556,-500.0,0.00016438,2]
[399964361,1766949041566,-500.0,0.00016438,2]
[399964362,1766949041576,-500.0,0.00016438,2]
[399964363,1766949041586,-500.0,0.00016438,2]
[399964364,1766949041595,-500.0,0.00016438,2]
[399964365,1766949041605,-500.0,0.00016438,2]
[399964366,1766949041615,-190.96684747,0.00016438,2]
[399964367,1766949041625,-500.0,0.00016438,2]
[399964368,1766949041635,-500.0,0.00016438,2]
[399964369,1766949041644,-500.0,0.00016438,2]
[399964370,1766949041655,-500.0,0.00016438,2]
[399964371,1766949041664,-500.0,0.00016438,2]
[399964372,1766949041673,-500.0,0.00016438,2]
[399964373,1766949041685,-500.0,0.00016438,2]
[399964374,1766949041695,-500.0,0.00016438,2]
[399964375,1766949041705,-500.0,0.00016438,2]
[399964376,1766949041714,-500.0,0.00016438,2]
[399964377,1766949041723,-500.0,0.00016438,2]
[399964378,1766949041732,-500.0,0.00016438,2]
[399964379,1766949041742,-500.0,0.00016438,2]
[399964380,1766949041751,-500.0,0.00016438,2]
[399964381,1766949041761,-500.0,0.00016438,2]
[399964382,1766949041770,-500.0,0.00016438,2]
[399964383,1766949041779,-500.0,0.00016438,2]
[399964384,1766949041788,-500.0,0.00016438,2]
[399964385,1766949041798,-500.0,0.00016438,2]
[399964386,1766949041807,-500.0,0.00016438,2]
[399964387,1766949041817,-9504.29,0.00016438,2]
[399964388,1766949041827,-152.09829773,0.00016447,2]
[399964389,1766949041836,-150.0,0.00016453,2]
[399964390,1766949041846,-166.66,0.00016454,2]
[399964391,1766949041855,-150.0,0.00016467,2]
[399964392,1766949041865,-150.0,0.00016477,2]
[399964393,1766949041876,-8650.38932789,0.00016482,2]
[399964394,1766949041889,-150.0,0.00016483,2]
[399964395,1766949041900,-150.0,0.00016487,2]
[399964396,1766949041909,-150.0,0.00016487,2]
[399964397,1766949041921,-926.48830604,0.0001649,2]
[399964398,1766949041930,-150.0,0.00016491,2]
[399964399,1766949041942,-397.0,0.00016494,2]
[399964400,1766949041954,-150.0,0.00016501,2]
[399964401,1766949041963,-150.0,0.00016501,2]
[399964402,1766949041973,-390.51226367,0.00016505,2]
[399964403,1766949041982,-6694.4507,0.00016511,2]
[399964404,1766949041991,-150.0,0.00016514,2]
[399964405,1766949042001,-150.0,0.00016519,2]
[399964406,1766949042010,-150.0,0.0001652,2]
[399964407,1766949042020,-2500.0,0.00016521,2]
[399964408,1766949042032,-196.74687624,0.00016521,2]
[399964409,1766949042041,-1000.0,0.00016521,2]
[399964410,1766949042052,-1000.0,0.00016525,2]
[399964411,1766949042061,-1668.0,0.00016526,2]
[399964412,1766949042071,-1740.9,0.00016532,2]
[399964413,1766949042083,-191.15909538,0.00016532,2]
[399964414,1766949042093,-172.21833335,0.00016532,2]
[399964415,1766949042103,-15496.32349811,0.00016532,2]
[399964416,1766949042113,-181.608,0.00016542,2]
[399964417,1766949042123,-1646.223,0.00016542,2]
[399964418,1766949042133,-150.0,0.00016546,2]
[399964419,1766949042142,-150.0,0.00016553,2]
[399964420,1766949042152,-206.3,0.00016559,2]
[399964421,1766949042161,-150.0,0.00016562,2]
[399964422,1766949042171,-150.0,0.00016562,2]
[399964423,1766949042181,-150.0,0.00016562,2]
[399964424,1766949042191,-15496.32349807,0.00016573,2]
[399964425,1766949042200,-150.0,0.00016582,2]
[399964426,1766949042210,-390.51226367,0.00016584,2]
[399964427,1766949042220,-150.0,0.00016587,2]
[399964428,1766949042230,-150.0,0.00016587,2]
[399964429,1766949042375,-150.0,0.00016604,2]
[399964430,1766949042392,-172.21833333,0.00016606,2]
[399964431,1766949042402,-150.0,0.00016609,2]
[399964432,1766949042412,-150.0,0.00016609,2]
[399964433,1766949042422,-150.0,0.00016609,2]
[399964434,1766949042432,-15496.32349807,0.00016614,2]